Cogmind - Beta 12 @@@ ROGUE MODE // 2023.03.14 @ 18:32:38 Player: Delta Epsilon Result: Destroyed by D-53 Grenadier with Mini Grenade Launcher Performance ------------- Evolutions (1) 500 Regions Visited (3) 600 Robots Destroyed (58) 290 Value Destroyed (1610) 1610 Prototype IDs (4) 80 Alien Tech Used (0) 0 Bonus (120) 120 TOTAL SCORE: 3200 Bonus ------- High Alert Combat Kills 120 Cogmind --------- Core Integrity 0/400 Matter 300/300 Energy 100/100 System Corruption 2% Temperature Cool (0) Movement Core (350) Ox6 Location -9/Mines Parts ------- > --- POWER (1) -------- (None) > --- PROPULSION (3) --- (None) > --- UTILITY (3) ------ Large Storage Unit > --- WEAPON (2) ------- (None) > --- INVENTORY (15) --- Ion Engine Improved Ion Engine Cooling System Cooling System Medium Storage Unit High-capacity Matter Pod (200) Machine Analyzer Experimental Sensor Array Light Armor Plating Medium Armor Plating Long-range Tractor Beam Rocket Launcher Heavy Hammer Peak State ------------ > --- POWER ------------ Light Nuclear Core > --- PROPULSION ------- Armored Wheel Armored Wheel Armored Wheel > --- UTILITY ---------- Cooling System Large Storage Unit Medium Armor Plating > --- WEAPON ----------- Ion Cannon Ion Cannon > --- INVENTORY -------- Ion Engine Improved Ion Engine Cooling System Cooling System Medium Storage Unit High-capacity Matter Pod Machine Analyzer Light Armor Plating Light Armor Plating Medium Armor Plating Medium Armor Plating Long-range Tractor Beam Ion Cannon Heavy Hammer [Rating: 22] Favorites ----------- Power Improved Ion Engine Engine Improved Ion Engine Power Core Light Nuclear Core Propulsion Armored Wheel Treads Light Treads Leg Aluminum Leg Wheel Armored Wheel Utility Large Storage Unit Device Cooling System Storage Large Storage Unit Processor Targeting Computer Protection Light Armor Plating Weapon Heavy Particle Cannon Energy Gun Medium Laser Energy Cannon Heavy Particle Cannon Ballistic Gun Shotgun Impact Weapon Heavy Hammer Build | -11 -10 -9 -9 ------- Run | Jun Mat Mat Min Slots Evolved 2 | . . 2 . Power . | . . . . Propulsion 1 | . . 1 . Utility 1 | . . 1 . Weapon . | . . . . Parts Attached 70 | 7 11 48 4 Power 8 | 1 1 5 1 Engine 7 | 1 1 5 . Core 1 | . . . 1 Reactor . | . . . . Propulsion 14 | 3 3 7 1 Treads 1 | 1 . . . Leg 9 | 2 3 4 . Wheel 4 | . . 3 1 Hover . | . . . . Flight . | . . . . Utility 13 | 1 2 9 1 Device 5 | . . 5 . Storage 4 | 1 1 2 . Processor 1 | . 1 . . Hackware . | . . . . Protection 3 | . . 2 1 Artifact . | . . . . Weapon 35 | 2 5 27 1 Energy Gun 18 | 2 5 11 . Energy Cannon 14 | . . 13 1 Ballistic Gun 2 | . . 2 . Ballistic Cannon . | . . . . Launcher . | . . . . Special Weapon . | . . . . Impact Weapon 1 | . . 1 . Slashing Weapon . | . . . . Piercing Weapon . | . . . . Special Melee Weapon . | . . . . Unidentified Prototypes 2 | . . 2 . Parts Lost 21 | . 3 7 11 Power 4 | . . 3 1 Propulsion 7 | . . 3 4 Utility 4 | . . 1 3 Weapon 6 | . 3 . 3 Highest Loss Streak 10 | . 2 3 10 To Critical Strikes . | . . . . Average Slot Usage (%) 92 | . 87 93 92 Engine 9 | . 14 10 . Core 1 | . . . 9 Leg 15 | . 28 15 . Wheel 15 | . . 16 28 Device 8 | . . 9 9 Storage 11 | . 14 11 11 Processor 6 | . 5 7 . Protection 4 | . . 3 10 Energy Gun 8 | . 23 6 . Energy Cannon 10 | . . 11 21 Naked Turns . | . . . . Heaviest Build 48 | 12 24 48 48 Greatest Support 36 | 20 20 36 36 Greatest Overweight (x) 8 | . 1 7 8 Average Overweight (x) . | . . . 1 Largest Inventory Capacity 15 | 8 10 15 15 Average Capacity 13 | 6 9 14 15 Most Carried 15 | 1 6 15 15 Average Carried 9 | . 3 10 14 Final Capacity 15 | 8 10 15 15 Final Carried 13 | . 5 13 13 Class Distribution -------------------- 100% | Mutant Dominant Class ---------------- Mutant | -10/Materials Mutant | -9/Materials Mutant | -9/Mines Resources | -11 -10 -9 -9 ----------- Run | Jun Mat Mat Min Matter Collected 1096 | 203 289 580 24 Remotely . | . . . . Salvage Created 2269 | . 297 1621 351 Parts 107 | . 13 75 19 Haulers Intercepted 5 | . . 5 . Recyclers Shooed 1 | . . 1 . Parts Field Recycled . | . . . . Retrieved Matter . | . . . . Parts Self-Destructed . | . . . . Prevented . | . . . . Kills | -11 -10 -9 -9 ------- Run | Jun Mat Mat Min Combat Hostiles Destroyed 40 | . 4 28 8 Guns 10 | . 2 8 . Cannons 21 | . . 14 7 AOE 2 | . 1 1 . Classes Destroyed 10 | . 4 6 . Builder 2 | . 1 . 1 Hauler 5 | . . 5 . Recycler 3 | . 1 2 . Mechanic 1 | . . 1 . Operator 3 | . . 3 . Watcher 4 | . 1 3 . Swarmer 5 | . . 5 . Grunt 24 | . 4 13 7 Duelist 2 | . . 1 1 Sentry 9 | . . 9 . Best Kill Streak 4 | . 3 4 3 Combat Bots Only 4 | . 2 4 3 Max Kills in Single Turn 2 | . 1 2 1 Gunslinging 1 | . . 1 . Exploded 1 | . 1 1 . Melee . | . . . . Uniques/NPCs Destroyed . | . . . . Combat | -11 -10 -9 -9 -------- Run | Jun Mat Mat Min Damage Taken 3076 | . 422 1450 1204 Core 517 | . 91 207 219 Absorbed by Shields . | . . . . Core Remaining (%) 81 | 100 63 . . Volleys Fired 136 | . 20 96 20 Largest 2 | . 2 2 2 Hottest 150 | . 90 150 120 Shots Fired 256 | . 37 179 40 Gun 120 | . 37 83 . Cannon 136 | . . 96 40 Launcher . | . . . . Special . | . . . . Kinetic 14 | . . 14 . Thermal 193 | . 6 147 40 Explosive . | . . . . Electromagnetic 49 | . 31 18 . Robot Hit Streak 21 | . 6 21 10 Robot Miss Streak 6 | . 6 2 4 Penetration Max . | . . . . Secondary Targets 2 | . 1 1 . Max Gunslinging Chain 1 | . 1 1 . Shots Hit Robots 189 | . 24 138 27 Core Hits 71 | . 10 50 11 Critical Kills 2 | . . 1 1 Critical Parts Destroyed 5 | . . 5 . Critical Strikes 10 | . 2 7 1 Burn 2 | . 1 1 . Meltdown 2 | . . 1 1 Corrupt 1 | . 1 . . Smash 5 | . . 5 . Melee Attacks 20 | . . 20 . Impact 20 | . . 20 . Slashing . | . . . . Piercing . | . . . . Sneak Attacks 2 | . . 2 . Combat Hostiles . | . . . . Follow-up Attacks . | . . . . Damage Inflicted 4368 | . 468 3236 664 Guns 1335 | . 349 986 . Cannons 2114 | . . 1452 662 Explosions 185 | . 117 68 . Melee 717 | . . 717 . Ramming 17 | . 2 13 2 Kinetic 260 | . . 260 . Thermal 2842 | . 154 2026 662 Explosive . | . . . . Electromagnetic 532 | . 312 220 . Impact 717 | . . 717 . Slashing . | . . . . Piercing . | . . . . Highest Corruption 2 | . . 2 2 Average Corruption 2 | . . 2 2 Corruption Purged . | . . . . Corruption Blocked . | . . . . Effects 8 | . . 3 5 Message Errors 1 | . . . 1 Matter Fused 3 | . . 1 2 Heat Flow Errors 1 | . . . 1 Energy Discharges 1 | . . 1 . Data Loss (minor) 1 | . . . 1 Data Loss (major) 1 | . . 1 . Overload Shots . | . . . . Overflow Damage 257 | . 5 237 15 Projectiles 35 | . . 20 15 Explosions 23 | . 5 18 . Melee 199 | . . 199 . Knockbacks 5 | . . 5 . Impact 4 | . . 4 . Kinetic . | . . . . Secondary 1 | . . 1 . Self-Inflicted Damage 103 | . 32 70 1 Shots 3 | . 1 2 . Rammed 1 | . . . 1 Targets Rammed 6 | . 2 3 1 Kicked 5 | . 2 3 . Crushed . | . . . . Highest Temperature 240 | . 204 240 155 Average Temperature 69 | . 80 70 52 Received Heat Transfer 918 | . 216 558 144 Siege Activations . | . . . . Robots Corrupted 1 | . 1 . . Combat Hostiles 1 | . 1 . . Parts Fried 6 | . 2 4 . Impact Corruptions 8 | . . 8 . Robots Melted 2 | . . 1 1 Combat Hostiles 2 | . . 1 1 Parts Melted 14 | . . 9 5 Heat Transferred 5084 | . 335 3676 1073 Parts Sabotaged . | . . . . Parts Stolen . | . . . . Parts Stripped . | . . . . Power Chain Reactions 4 | . 2 2 . Missiles Intercepted . | . . . . Alert | -11 -10 -9 -9 ------- Run | Jun Mat Mat Min Peak Influence 607 | . 88 607 442 Initial 236 | . . 28 236 Average 263 | . 47 305 362 Maximum Alert Level 2 | . . 2 2 Low Security (%) 36 | 100 100 25 4 Level 1 36 | . . 40 67 Level 2 26 | . . 33 28 Level 3 . | . . . . Level 4 . | . . . . Level 5 . | . . . . High Security . | . . . . Max Security . | . . . . Squads Dispatched 5 | . 2 3 . Investigation 2 | . 1 1 . Extermination . | . . . . Reinforcement 3 | . 1 2 . Assault . | . . . . Garrison . | . . . . Intercept . | . . . . Searches Triggered . | . . . . Construction Impeded 1 | . . 1 . Haulers Reinforced . | . . . . Active Scanning Responses . | . . . . Cargo Convoy Interrupts . | . . . . Stealth | -11 -10 -9 -9 --------- Run | Jun Mat Mat Min Distress Signals 3 | . 2 1 . Communications Jammed . | . . . . Distress Signals . | . . . . Times Spotted 71 | . 15 38 18 Peak Tracking Total 10 | . 8 4 10 Tactical Retreats 3 | . . 3 . Traps | -11 -10 -9 -9 ------- Run | Jun Mat Mat Min Traps Triggered 4 | . 2 2 . Indirectly . | . . . . Trap Hack Attempts . | . . . . Triggered . | . . . . Disarmed . | . . . . Reprogrammed . | . . . . Reused . | . . . . Traps Extracted . | . . . . Installed . | . . . . Triggered . | . . . . Machines | -11 -10 -9 -9 ---------- Run | Jun Mat Mat Min Machines Disabled 3 | . 1 1 1 Max in Single Turn 1 | . 1 1 1 Machines Repaired . | . . . . Machines Sabotaged . | . . . . Overloaded Fab Kills . | . . . . Hacking | -11 -10 -9 -9 --------- Run | Jun Mat Mat Min Machines Accessed 14 | . 3 11 . Terminals 12 | . 3 9 . Fabricators . | . . . . Repair Stations . | . . . . Recycling Units 2 | . . 2 . Scanalyzers . | . . . . Garrison Access . | . . . . Total Hacks 30 | . 6 24 . Successful 11 | . 2 9 . Failed 17 | . 3 14 . Catastrophic 5 | . 2 3 . Database Lockouts 2 | . 1 1 . Manual 14 | . 4 10 . Terminals 26 | . 6 20 . Fabricators . | . . . . Repair Stations . | . . . . Recycling Units 4 | . . 4 . Scanalyzers . | . . . . Garrison Access . | . . . . Terminal Hacks 8 | . 2 6 . Part Schematic 1 | . . 1 . Robot Schematic 1 | . 1 . . Prototype ID Bank 1 | . . 1 . Level Access Points 1 | . 1 . . Emergency Access Points 1 | . . 1 . Terminal Index 1 | . . 1 . Locate Traps 1 | . . 1 . Zone Layout 1 | . . 1 . Fabricator Hacks . | . . . . Repair Station Hacks . | . . . . Recycling Unit Hacks 2 | . . 2 . Retrieve Components 2 | . . 2 . Scanalyzer . | . . . . Garrison Access Hacks . | . . . . Unauthorized Hacks 1 | . . 1 . Terminals 1 | . . 1 . Assimilate 1 | . . 1 . Fabricators . | . . . . Repair Stations . | . . . . Recycling Units . | . . . . Scanalyzers . | . . . . Garrison Access . | . . . . Data Cores Recovered 2 | . . 2 . Used . | . . . . Hacking Detections 10 | . 2 8 . Full Trace Events . | . . . . Feedback Events . | . . . . Feedback Blocked . | . . . . Robot Schematics Acquired 1 | . 1 . . Robots Built . | . . . . Authchips . | . . . . Time . | . . . . Total Robot Build Rating . | . . . . Part Schematics Acquired 1 | . . 1 . Parts Built . | . . . . Authchips . | . . . . Time . | . . . . Total Part Build Rating . | . . . . Parts Repaired . | . . . . Time . | . . . . Parts Recycled . | . . . . Recycled Matter . | . . . . Retrieved Matter . | . . . . Retrieved Components 14 | . . 14 . Parts Scanalyzed . | . . . . Part Schematics Acquired . | . . . . Parts Damaged . | . . . . Bothacking | -11 -10 -9 -9 ------------ Run | Jun Mat Mat Min Used RIF Installer . | . . . . Robots Hacked . | . . . . Non-combat . | . . . . Combat . | . . . . Robot Hacks Applied . | . . . . Relay Couplers Released . | . . . . Fabnet Peak Effective % . | . . . . Robots Rewired . | . . . . Allies Hacked . | . . . . Hacks Repelled . | . . . . Allies | -11 -10 -9 -9 -------- Run | Jun Mat Mat Min Total Allies 1 | . . 1 . Largest Group 1 | . . 1 1 Highest-Rated Group 10 | . . 10 10 Highest-Rated Ally 10 | . . 10 10 Total Orders . | . . . . Ally Attacks . | . . . . Total Damage . | . . . . Kills . | . . . . Allies Corrupted . | . . . . Allies Melted . | . . . . Intel | -11 -10 -9 -9 ------- Run | Jun Mat Mat Min Robot Analysis Total . | . . . . Derelict Logs Recovered . | . . . . Drone Launches . | . . . . Drone Recoveries . | . . . . Exploration | -11 -10 -9 -9 ------------- Run | Jun Mat Mat Min Turns Passed 3350 | 92 529 2298 431 Spaces Moved 2225 | 71 357 1467 330 Core 17 | 6 . 9 2 Treads . | . . . . Legs 1006 | 65 357 584 . Wheels 1202 | . . 874 328 Hover . | . . . . Flight . | . . . . Fastest Speed 50 | 50 120 90 86 Average Speed 117 | 114 120 119 106 Slowest Speed 450 | 120 190 400 450 Overloaded Moves . | . . . . Propulsion Burnouts . | . . . . Robots Hopped . | . . . . Cave-ins Triggered . | . . . . Exploration Rate (%) 53 | 3 67 81 63 Regions Visited 3 Branch Regions 1 Pre-discovered Areas . | . . . . Known Exits Taken 1 | . 1 . . Unknown Exits Taken 2 | 1 . 1 . Scrap Searched . | . . . . Spaces Dug 2 | . . 2 . Terrain Destroyed 44 | . 12 29 3 Melee . | . . . . Projectile 24 | . . 21 3 AOE 20 | . 12 8 . Terrain Rammed . | . . . . Walls Destroyed . | . . . . Machines Disabled . | . . . . Actions | -11 -10 -9 -9 --------- Run | Jun Mat Mat Min Total 2655 | 79 414 1792 370 Wait 121 | . 16 93 12 Move 2222 | 70 356 1466 330 Hop . | . . . . Pick Up 38 | . 5 31 2 Fast Attach 24 | 7 6 10 1 Attach 10 | . 1 7 2 Detach 9 | 1 1 7 . Swap 36 | . 4 31 1 Drop 33 | 1 3 28 1 Fire 136 | . 20 96 20 Melee 20 | . . 20 . Ram 1 | . . . 1 Kick 5 | . 2 3 . Crush . | . . . . Escape Stasis . | . . . . Rewire . | . . . . Trap . | . . . . Miscellaneous . | . . . . Route ------- -11/Junkyard -10/Materials (discovered 4 exits: *Mat x3 / [*Min]) -9/Materials (discovered 3 exits: [*Mat x2] / [*Min]) -9/Mines History --------- Turn | Location | Event 17 | -11/Junkyard | Discovered new exit (range 15) 93 | -11/Junkyard | Entered Materials 297 | -10/Materials | Discovered new exit (range 13) 301 | -10/Materials | Central database locked down 318 | -10/Materials | Build established: Mutant 435 | -10/Materials | Identified exit to Materials 532 | -10/Materials | Discovered new exit (range 16) 622 | -10/Materials | Entered another Materials area 622 | -9/Materials | Evolved 2 slots: Propulsion x1, Utility x1 908 | -9/Materials | Central database locked down 1135 | -9/Materials | Discovered new exit (range 11) 1748 | -9/Materials | Lost 3 parts (1p2n) 2064 | -9/Materials | Discovered new exit (range 13) 2375 | -9/Materials | Discovered new exit (range 13) 2552 | -9/Materials | Core integrity fell below 50% 2920 | -9/Materials | Entered Mines 2920 | -9/Mines | Accompanied by 1 ally 3210 | -9/Mines | Found a damaged Exp. Sensor Array with a note attached 3213 | -9/Mines | Found Prototype Device 3252 | -9/Mines | Received a Rocket Launcher from a helpful Derelict 3282 | -9/Mines | Assembled infested the area 3341 | -9/Mines | Core integrity fell below 20% 3351 | -9/Mines | Destroyed by D-53 Grenadier with Mini Grenade Launcher Last Messages --------------- 03324_ Lgt. Nuclear Core destroyed. 03331_ as-16043 destroyed. 03332_ The unstable cave ceiling collapses. 03333_ Ion Cannon destroyed. 03333_ K-01 Serf destroyed. 03333_ K-01 Serf collects debris. 03333_ Med. Armor Plating destroyed. 03335_ K-01 Serf destroyed. 03336_ The unstable cave ceiling collapses. 03336_ Acquired Wheel. 03338_ T-07 Excavator destroyed. 03339_ D-53 Grenadier knocked back. 03340_ as-02381 destroyed. 03341_ Wheel destroyed. 03342_ The unstable cave ceiling collapses. 03342_ Arm. Wheel destroyed. 03344_ D-53 Grenadier destroyed. 03345_ The unstable cave ceiling collapses. 03346_ Ion Cannon destroyed. 03349_ The unstable cave ceiling collapses. Map ----- +----------------------------------------------------+ | ??????? ## ????????????????????????????????????? | | ???????? ???????????????????????????????????? | | ????????# ???????????????????????????????????? | | ?????????# ??????????????????????????????????? | | ?????????# ?????#####????????????????????????? | | ?????????# #????? #????????????????????????# | | ??????????# ?##### ######??????????????????? | | ??????????# ## # ##??????????????????# | | ??????????# ##?????????????????# | | ??????????# # ##????????????????# | | ??????????# # ###??????????????# | | ???????????# # "" ##?????????????# | | ???????????# # ! ############### | | ??????????????# % | | ??????????????# # = ################ | | ??????????????# # ##?????####??#### | | ##????????????## #????## ##?# | | ####??????????# # % ###???## #?#""" | | ##?????????# a ###???# #??#""" | | ##????????# # ## ? #???# ####""" | | ##???????# ##### #???# | | ####????## d #???# #??## # ## | | #??##### #???# #?##! ## ##### | | ## #?## ## a ###### ### ### #???? | | ### ## ### ### %! #?# #???? | | #?## ## @ =* ##?# #???? | | ???## ### #%##########??# ???? | | ???## # ### ### ##%#???????###?###???? | | ?### ## #?####% ####### ###=#??????# ##??????? | | ## ### #????#% #????## ##%#????## #??????? | | # ###?# #????# %#???## =[##??# #??????? | | # ##???# #????# #???# *[#?? ##?????? | | # #????# #????# #???# #?? ##????? | | ####????# #????# #???## r ##?? ##???? | | ?######## #????# #????# #### ##??? | | ?# #????# #????## # ## ##?? | | ## ########??### #?????# ## #?? | | #?????????# ####### ## #? | | ###?????????# ### ?? | | ##??????????# ## ##???????? | | ##?????????## ########## #????????? | | ##?????????# ##??????### ## #????????? | | ##????????# ###### #####?# ##????????? | | #???###??# ##????####?????????? | | #### ##?## #?????????????????? | | # ## ##?## ### #?????????????????? | | # """ #??### #????? ##?????????????????? | | # """ ###??## #?????????????????????????? | | # """ ## ???## ##?????????????????????????? | | # ###### ## ### #??????????????????????????? | +----------------------------------------------------+ Best States ------------- Heat Dissipation 50 Coolant Potential 50 Energy Generation 14 Energy Capacity 265 Matter Stores 300 Matter Capacity 300 Sight Range 16 Terrain Scan Density 10 Armor Coverage 225 Evasion (%) 55 Targeting Accuracy 5 Item Schematics ----------------- Lrg. Storage Unit | -9/Materials | Hacked Robot Schematics ------------------ M-13 Machinist | -10/Materials | Hacked Fabricated ------------ Nothing Alien Tech Used ----------------- None Achievements -------------- None Challenges ------------ None Game ------ Seed DamperSegregatorDriver Manual? 0 Play Time 00:28:52 Cumulative 136.8 hours Start 2023.03.14 @ 17:50:19 End 2023.03.14 @ 18:32:38 Sessions 1 Manual Loads 0 Difficulty Rogue Special Mode None Game No. 90 Rogue 90 Adventurer 0 Explorer 0 Win Type - Total 1 Types 0/0/1/0/0/0/0/0/0 Lore% 54 Gallery% 68 Achievement% 55 Wizard Run 0 Options --------- ASCII 1 Keyboard 1 Movement Numpad Keybinds 0 Fullscreen 0 Font 16/Terminus Map View 76x50 Tactical HUD 1 Map Filters NONE Filters NONE Steam 1 RUN: 7a8fea13-8076-4145-9522-4ed6445d1cc8